bitfinex/quotes_BTCUSD_20251202
["timestamp","ask_amount","ask_price","bid_price","bid_amount"]
[1764707629221,6e-05,91080.0,91079.0,0.89106193]
[1764707629789,0.00206,91080.0,91079.0,0.89106193]
[1764707630301,0.00206,91080.0,91079.0,0.89006193]
[1764707630724,0.00306,91080.0,91079.0,0.89006193]
[1764707631501,0.00306,91080.0,91079.0,1.21306193]
[1764707631745,4.678e-05,91094.0,91093.0,0.21955583]
[1764707631954,4.678e-05,91094.0,91093.0,0.40766818]
[1764707632288,4.678e-05,91094.0,91093.0,0.80766818]
[1764707633138,4.678e-05,91094.0,91093.0,1.13066818]
[1764707633343,0.23044409,91129.0,91121.0,0.01097441]
[1764707633544,0.23044409,91129.0,91125.0,0.01646235]
[1764707633545,0.01097357,91128.0,91125.0,0.01646235]
[1764707633718,0.0113612,91129.0,91126.0,0.21947573]
[1764707633919,0.0113612,91129.0,91128.0,0.04463]
[1764707633920,0.23083184,91129.0,91128.0,0.04463]
[1764707634517,0.23083184,91129.0,91128.0,0.10568]
[1764707635355,0.23083184,91129.0,91128.0,0.10968]
[1764707635740,0.34320783,91129.0,91128.0,0.004]
[1764707635944,0.31343783,91129.0,91128.0,0.004]
[1764707636705,0.31343783,91129.0,91128.0,0.37748151]
[1764707636706,0.00038775,91129.0,91128.0,0.37748151]
[1764707636906,0.00038775,91129.0,91128.0,0.17447235]
[1764707639001,0.02218374,91129.0,91128.0,0.02046235]
[1764707639204,0.04947098,91129.0,91128.0,0.02046235]
[1764707639408,0.05058098,91129.0,91128.0,0.02046235]
[1764707640244,0.02767499,91129.0,91128.0,0.08151235]
[1764707640430,0.02767499,91129.0,91128.0,0.86367835]
[1764707640431,0.00038775,91129.0,91128.0,0.86367835]
[1764707640782,0.00038775,91129.0,91128.0,0.58684235]
[1764707641175,0.00038775,91129.0,91128.0,0.58284235]
[1764707641374,0.00038775,91129.0,91128.0,0.58684235]
[1764707641798,0.00038775,91129.0,91128.0,0.90684235]
[1764707641931,0.01096912,91165.0,91160.0,0.23036266]
[1764707642144,8.09e-05,91165.0,91164.0,0.07751235]
[1764707642552,8.09e-05,91165.0,91151.0,0.26386416]
[1764707642553,0.01097068,91152.0,91139.0,0.10393225]
[1764707642760,0.05261056,91153.0,91146.0,0.0109714]
[1764707643011,0.2303809,91154.0,91149.0,0.01097104]
[1764707643012,0.01097044,91154.0,91149.0,0.01097104]
[1764707643209,0.23038104,91154.0,91153.0,0.04445]
[1764707643466,0.01097044,91154.0,91153.0,0.04445]
[1764707643642,0.01097044,91154.0,91153.0,0.1055]
[1764707644455,0.01097044,91154.0,91153.0,0.04445]
[1764707644648,0.01097044,91154.0,91153.0,0.04645]
[1764707645934,0.01097044,91154.0,91153.0,0.2056]
[1764707646364,0.01097044,91154.0,91153.0,0.04645]
[1764707646781,0.01193044,91154.0,91153.0,0.002]
[1764707646943,0.01097044,91154.0,91153.0,0.002]
[1764707647789,0.01097044,91154.0,91141.0,0.0946]
[1764707647790,0.21947632,91126.0,91122.0,0.323]
[1764707648158,0.01097465,91119.0,91110.0,0.04445]
[1764707648385,0.09693,91127.0,91110.0,0.04445]
[1764707648386,0.01097333,91130.0,91117.0,0.0109749]
[1764707648605,0.01097273,91135.0,91118.0,0.06455]
[1764707648606,0.01097393,91125.0,91118.0,0.06455]
[1764707648812,0.01097381,91126.0,91120.0,0.2304629]
[1764707649012,0.01097176,91143.0,91139.0,0.01097225]
[1764707649225,0.01097249,91137.0,91131.0,0.23043666]
[1764707649449,0.21943799,91142.0,91124.0,0.06091235]
[1764707649621,0.01097164,91144.0,91141.0,0.01646235]
[1764707649830,0.2194378,91142.0,91141.0,0.01646235]
[1764707650403,0.01097128,91147.0,91141.0,0.01646235]
[1764707650607,0.2194378,91142.0,91141.0,0.01646235]
[1764707651408,0.2194378,91142.0,91141.0,0.01746235]
[1764707653864,0.76288678,91142.0,91141.0,0.001]
[1764707654081,0.76288678,91142.0,91118.0,0.00038775]
[1764707654082,0.21949319,91119.0,91118.0,0.00038775]
[1764707654273,0.30467217,91119.0,91118.0,0.00038775]
[1764707654608,0.39116217,91119.0,91118.0,0.00038775]
[1764707654808,0.36936618,91119.0,91118.0,0.00038775]
[1764707655048,0.39116217,91119.0,91118.0,0.00038775]
[1764707655294,0.30467217,91119.0,91118.0,0.00038775]
[1764707655654,0.32227217,91119.0,91118.0,0.00038775]
[1764707655859,0.21949319,91119.0,91118.0,0.00038775]
[1764707656577,0.24128918,91119.0,91118.0,0.00038775]
[1764707657013,0.24128918,91119.0,91118.0,0.00238775]
[1764707658317,0.24128918,91119.0,91118.0,0.00338775]
[1764707664141,0.24300918,91119.0,91118.0,0.00338775]
[1764707667667,0.32900918,91119.0,91118.0,0.00338775]
[1764707669859,0.24300918,91119.0,91118.0,0.00138775]
[1764707670260,0.21949319,91119.0,91118.0,0.00038775]
[1764707670397,0.04878,91128.0,91119.0,0.01097465]
[1764707670594,0.02179599,91132.0,91126.0,0.21947555]
[1764707670775,0.23044984,91127.0,91124.0,0.01646235]
[1764707671429,0.21947671,91126.0,91124.0,0.01646235]
[1764707671754,0.01097369,91127.0,91126.0,0.06455]
[1764707671965,0.23044761,91127.0,91126.0,0.06455]
[1764707672952,0.23044761,91127.0,91126.0,0.06555]
[1764707674378,0.23044761,91127.0,91126.0,0.15699]
[1764707675543,0.01097273,91135.0,91126.0,0.16796381]
[1764707675757,0.01097261,91136.0,91133.0,0.23043204]
[1764707676119,0.01097201,91141.0,91136.0,0.01097261]
[1764707676328,0.23041474,91140.0,91139.0,0.01646235]
[1764707677580,0.01097176,91143.0,91139.0,0.08200235]
[1764707677754,0.21944118,91141.0,91139.0,0.11418235]
[1764707677908,0.21943981,91142.0,91139.0,0.3336272]
[1764707678114,0.2194378,91142.0,91141.0,0.06554]
[1764707678314,0.01097152,91145.0,91141.0,0.06554]
[1764707678542,0.21944261,91140.0,91139.0,0.01646235]
[1764707678715,0.21946439,91131.0,91127.0,0.05542369]
[1764707679060,0.01097309,91132.0,91128.0,0.01097357]
[1764707679061,0.23043522,91132.0,91128.0,0.01097357]
[1764707679219,0.21945947,91133.0,91129.0,0.2304425]
[1764707679621,0.01097285,91134.0,91130.0,0.23043895]
[1764707679826,0.01097297,91133.0,91128.0,0.01097357]
[1764707680024,0.01097333,91130.0,91127.0,0.04445]
[1764707680268,0.21947151,91128.0,91127.0,0.04445]
[1764707680470,0.01097309,91132.0,91127.0,0.05542369]
[1764707680709,0.23043004,91134.0,91130.0,0.23043936]
[1764707681035,0.01097285,91134.0,91131.0,0.2194631]
[1764707681229,0.2304293,91135.0,91132.0,0.21946178]
[1764707681434,0.2304293,91135.0,91132.0,0.23043487]
[1764707681616,0.01097273,91135.0,91132.0,0.23043487]
[1764707681771,0.24124907,91136.0,91133.0,0.21945947]
[1764707681994,0.23043225,91134.0,91131.0,0.01097321]
[1764707682193,0.23043225,91134.0,91130.0,0.01097333]
[1764707682389,0.23043454,91133.0,91130.0,0.01097333]
[1764707682808,0.23043454,91133.0,91132.0,0.001]
[1764707683234,0.21946787,91130.0,91128.0,0.01097357]
[1764707683534,0.23043807,91131.0,91128.0,0.01097357]
[1764707683696,0.23043807,91131.0,91130.0,0.001]
[1764707684092,0.23043807,91131.0,91127.0,0.27489733]
[1764707684093,0.21947151,91128.0,91127.0,0.04445]
[1764707684440,0.04930345,91129.0,91128.0,0.002]
[1764707684611,0.26877735,91129.0,91128.0,0.003]
[1764707684796,0.26877735,91129.0,91128.0,0.001]
[1764707685344,0.35983735,91129.0,91128.0,0.001]
[1764707685500,0.38163334,91129.0,91128.0,0.001]
[1764707685906,0.21949319,91119.0,91118.0,0.00038775]
[1764707686125,0.26696319,91119.0,91118.0,0.00038775]
[1764707686289,0.38065918,91119.0,91118.0,0.00038775]
[1764707687136,0.38065918,91119.0,91118.0,0.00238775]
[1764707687335,0.21958717,91080.0,91071.0,0.09836259]
[1764707687559,0.28211016,91080.0,91079.0,0.10011638]
[1764707687774,0.39640615,91080.0,91079.0,0.11012802]
[1764707688234,0.39640615,91080.0,91079.0,0.10011638]
[1764707688439,0.71940615,91080.0,91079.0,0.10011638]
[1764707688815,0.71628186,91080.0,91079.0,0.10011638]
[1764707689693,0.71628186,91080.0,91079.0,0.10111638]
[1764707690099,0.71728186,91080.0,91079.0,0.10011638]
[1764707692083,0.69548587,91080.0,91079.0,0.10011638]
[1764707692269,0.73488186,91080.0,91079.0,0.10011638]
[1764707696100,0.71728186,91080.0,91079.0,0.10011638]
[1764707696297,0.41188186,91080.0,91079.0,0.10011638]
[1764707696711,0.001,91080.0,91079.0,0.10011638]
[1764707696907,0.01097887,91084.0,91079.0,0.26337638]
[1764707697118,0.01097887,91084.0,91082.0,0.01646235]
[1764707697119,0.21958078,91083.0,91082.0,0.01646235]
[1764707698347,0.23055434,91085.0,91082.0,0.01646235]
[1764707698547,0.21957907,91084.0,91082.0,0.01646235]
[1764707699241,0.001,91083.0,91082.0,0.01646235]
[1764707699675,0.21957774,91086.0,91082.0,0.01646235]
[1764707699676,0.21957271,91086.0,91082.0,0.01646235]
[1764707699893,0.01097791,91092.0,91082.0,0.01646235]
[1764707699894,0.001,91084.0,91082.0,0.23604398]
[1764707700317,0.001,91084.0,91083.0,0.16326]
[1764707700739,0.01097718,91098.0,91093.0,0.01097779]
[1764707700952,0.01097718,91098.0,91087.0,0.23054678]
[1764707700953,0.0109773,91097.0,91096.0,0.01646235]
[1764707701164,0.03826454,91097.0,91096.0,0.01646235]
[1764707701345,0.02728724,91097.0,91096.0,0.01646235]
[1764707701478,0.01097634,91105.0,91096.0,0.01646235]
[1764707701479,0.02728724,91099.0,91097.0,0.21954619]
[1764707701682,0.02728724,91099.0,91096.0,0.02743978]
[1764707701683,0.23048459,91113.0,91107.0,0.21952087]
[1764707701923,0.21951558,91110.0,91102.0,0.06554]
[1764707702130,0.01097562,91111.0,91110.0,0.01646235]
[1764707702354,0.01097646,91104.0,91098.0,0.09772]
[1764707702527,0.24134218,91097.0,91096.0,0.01646235]
[1764707702727,0.21954619,91097.0,91096.0,0.01646235]
[1764707703009,0.21954619,91097.0,91096.0,0.00011638]
[1764707703511,0.33507343,91097.0,91096.0,0.00011638]
[1764707703700,0.30778619,91097.0,91096.0,0.00011638]
[1764707703900,0.22154619,91097.0,91096.0,0.00111638]
[1764707704067,0.24883343,91097.0,91096.0,0.00111638]
[1764707704591,0.22154619,91097.0,91096.0,0.00111638]
[1764707705097,0.21954619,91097.0,91096.0,0.00011638]
[1764707705299,0.21954619,91097.0,91096.0,0.00111638]
[1764707706424,0.24683343,91097.0,91096.0,0.00111638]
[1764707707006,0.03939599,91101.0,91096.0,0.00111638]
[1764707707336,0.06165,91103.0,91100.0,0.01097694]
[1764707707664,0.01097562,91111.0,91105.0,0.23050298]
[1764707707885,0.21952276,91107.0,91103.0,0.01097658]
[1764707708108,0.01097538,91113.0,91105.0,0.01097634]
[1764707708342,0.2305017,91106.0,91103.0,0.01097658]
[1764707708541,0.23050395,91105.0,91101.0,0.27496279]
[1764707708694,0.21953262,91103.0,91101.0,0.04445]
[1764707708894,0.01097646,91104.0,91101.0,0.04445]
[1764707709103,0.21953174,91103.0,91101.0,0.04445]
[1764707709313,0.01097646,91104.0,91101.0,0.04445]
[1764707709314,0.23050588,91104.0,91101.0,0.04445]
[1764707709725,0.01197634,91105.0,91102.0,0.0109767]
[1764707709931,0.01097634,91105.0,91102.0,0.0109767]
[1764707710107,0.23050296,91106.0,91102.0,0.0109767]
[1764707710108,0.23050296,91106.0,91103.0,0.21953081]
[1764707710318,0.21953026,91104.0,91101.0,0.26398609]
[1764707710518,0.21953179,91103.0,91101.0,0.26398609]
[1764707710771,0.23050325,91105.0,91101.0,0.18481291]
[1764707710974,0.2195245,91107.0,91104.0,0.21952914]
[1764707711375,0.01097586,91109.0,91105.0,0.23050277]
[1764707711511,0.23049535,91109.0,91105.0,0.23050277]
[1764707711728,0.2195102,91112.0,91108.0,0.06302]
[1764707711928,0.01097453,91120.0,91115.0,0.01097514]
[1764707712169,0.01097453,91120.0,91106.0,0.31805367]
[1764707712170,0.2304729,91117.0,91116.0,0.04444]
[1764707712415,0.23048774,91112.0,91109.0,0.04444]
[1764707712565,0.24130154,91114.0,91111.0,0.21951242]
[1764707712765,0.24130154,91114.0,91113.0,0.01646235]
[1764707714229,0.21954137,91099.0,91098.0,0.01646235]
[1764707714446,0.230511,91102.0,91099.0,0.01097706]
[1764707714593,0.0109767,91102.0,91100.0,0.21953892]
[1764707714790,0.01097682,91101.0,91098.0,0.01646235]
[1764707714998,0.21954137,91099.0,91098.0,0.01646235]
[1764707715794,0.21954137,91099.0,91098.0,0.08048235]
[1764707716258,0.01097682,91101.0,91098.0,0.09045953]
[1764707716402,0.21954039,91100.0,91098.0,0.07948235]
[1764707716600,0.21953178,91103.0,91100.0,0.2195387]
[1764707716940,0.21953178,91103.0,91096.0,0.01109381]
[1764707716941,0.21958717,91080.0,91061.0,0.01098164]
[1764707717261,0.21958717,91080.0,91059.0,0.04445]
[1764707717262,0.40745615,91080.0,91060.0,0.02196354]
[1764707717437,0.40745615,91080.0,91059.0,0.06641378]
[1764707717635,0.38566016,91080.0,91059.0,0.06641378]
[1764707717840,0.40771016,91080.0,91060.0,0.01646235]
[1764707718185,0.42531016,91080.0,91060.0,0.01646235]
[1764707718460,0.44810615,91080.0,91060.0,0.01646235]
[1764707718709,0.44710615,91080.0,91060.0,0.01646235]
[1764707718911,0.44910615,91080.0,91060.0,0.03842589]
[1764707719120,0.44910615,91080.0,91060.0,0.01646235]
[1764707719240,0.44910615,91080.0,91060.0,0.02744412]
[1764707719435,0.44910615,91080.0,91060.0,0.01646235]
[1764707719887,0.44910615,91080.0,91062.0,0.23061203]
[1764707720142,0.44910615,91080.0,91061.0,0.01098164]
[1764707720982,0.44910615,91080.0,91060.0,0.24707769]
[1764707721222,0.44910615,91080.0,91061.0,0.23061284]
[1764707721372,0.44910615,91080.0,91060.0,0.01646235]
[1764707721583,0.44910615,91080.0,91060.0,0.03842589]
[1764707722781,0.44910615,91080.0,91061.0,0.01098164]
[1764707723224,0.44910615,91080.0,91060.0,0.01646235]
[1764707724345,0.44910615,91080.0,91061.0,0.01098164]
[1764707724544,0.43150615,91080.0,91060.0,0.01646235]
[1764707724744,0.44910615,91080.0,91060.0,0.13695589]
[1764707724969,0.44910615,91080.0,91060.0,0.01646235]
[1764707725386,0.44910615,91080.0,91046.0,0.01646235]
[1764707725387,0.77210615,91080.0,91046.0,0.01646235]
[1764707725501,0.77210615,91080.0,91048.0,0.02196643]
[1764707725502,0.75031016,91080.0,91048.0,0.02196643]
[1764707725706,0.77210615,91080.0,91048.0,0.02196643]
[1764707726362,0.77210615,91080.0,91037.0,0.0176]
[1764707726363,0.21970054,91033.0,91025.0,0.05543599]
[1764707726562,0.21970054,91033.0,91025.0,0.04445]
[1764707726825,0.21970054,91033.0,91020.0,0.0002]
[1764707726826,0.30402435,91031.0,91020.0,0.0002]
[1764707727037,0.35289435,91031.0,91020.0,0.0002]
[1764707727468,0.44311435,91031.0,91020.0,0.0002]
[1764707728249,0.44511435,91031.0,91020.0,0.0002]
[1764707729848,0.44511435,91031.0,91024.0,0.21972127]
[1764707730052,0.44511435,91031.0,91022.0,0.21972647]
[1764707730262,0.44511435,91031.0,91020.0,0.0002]
[1764707730469,0.44511435,91031.0,91020.0,0.23091765]
[1764707730680,0.22540898,91031.0,91025.0,0.01098599]
[1764707730902,0.11249299,91031.0,91024.0,0.01098611]
[1764707731105,0.11249299,91031.0,91022.0,0.23071135]
[1764707731106,0.14672299,91031.0,91023.0,0.01098623]
[1764707731315,0.14672299,91031.0,91024.0,0.23070605]
[1764707731815,0.14672299,91031.0,91024.0,0.21972114]
[1764707732022,0.14672299,91031.0,91023.0,0.21972308]
[1764707732226,0.14672299,91031.0,91027.0,0.21980413]
[1764707732375,0.14672299,91031.0,91027.0,9e-05]
[1764707732619,0.14672299,91031.0,91029.0,0.2199455]
[1764707732810,0.14672299,91031.0,91029.0,0.0002356]
[1764707733010,0.002,91031.0,91029.0,0.21994539]
[1764707733239,0.002,91031.0,91029.0,0.0002356]
[1764707733587,0.002,91031.0,91030.0,0.16175]
[1764707734555,0.2306711,91039.0,91034.0,0.0109849]
[1764707734763,0.2306711,91039.0,91038.0,0.01646235]
[1764707734764,0.0109843,91039.0,91038.0,0.01646235]
[1764707734963,0.21968149,91041.0,91038.0,0.01646235]
[1764707735172,0.23066555,91041.0,91038.0,0.01646235]
[1764707735369,0.21968375,91040.0,91038.0,0.01646235]
[1764707735887,0.2196933,91036.0,91035.0,0.04444]
[1764707736935,0.24149653,91033.0,91032.0,0.01646235]
[1764707737142,0.30402435,91031.0,91030.0,0.0002]
[1764707737357,0.39109435,91031.0,91030.0,0.00024678]
[1764707737548,0.48861435,91031.0,91030.0,0.00024678]
[1764707738183,0.50621435,91031.0,91030.0,0.00024678]
[1764707739146,0.40869435,91031.0,91030.0,0.00024678]
[1764707739779,0.40969435,91031.0,91030.0,0.00024678]
[1764707740316,0.39209435,91031.0,91030.0,0.00024678]
[1764707740531,0.40969435,91031.0,91030.0,0.00024678]
[1764707740956,0.40969435,91031.0,91030.0,0.28012456]
[1764707740957,0.001,91031.0,91030.0,0.28012456]
[1764707741124,0.001,91031.0,91030.0,0.06041678]
[1764707741351,0.001,91031.0,91030.0,0.15517678]
[1764707741527,0.001,91031.0,91030.0,0.17163913]
[1764707741929,0.001,91031.0,91030.0,0.07687913]
[1764707742332,0.23067796,91036.0,91030.0,0.30757044]
[1764707742531,0.23068626,91033.0,91030.0,0.30757044]
[1764707743151,0.23068626,91033.0,91030.0,0.07687913]
[1764707743353,0.2197042,91032.0,91030.0,0.07687913]
[1764707743534,0.23068626,91033.0,91030.0,0.07687913]
[1764707743535,0.23068606,91033.0,91030.0,0.07687913]
[1764707743911,0.01098454,91037.0,91030.0,0.07687913]
[1764707743912,0.01098454,91037.0,91031.0,0.01098526]
[1764707744113,0.21969557,91036.0,91032.0,0.21970174]
[1764707744455,0.23068023,91036.0,91033.0,0.23068401]
[1764707744659,0.25246645,91039.0,91036.0,0.01098466]
[1764707744660,0.02179599,91039.0,91036.0,0.01098466]
[1764707744876,0.02728724,91038.0,91036.0,0.01098466]
[1764707745082,0.2196933,91036.0,91035.0,0.04444]
[1764707745283,0.21969104,91037.0,91035.0,0.04444]
[1764707745866,0.21969121,91037.0,91035.0,0.04444]
[1764707746125,0.2196933,91036.0,91035.0,0.04444]
[1764707746997,0.24150136,91031.0,91029.0,0.0002356]
[1764707747394,0.21970537,91031.0,91030.0,0.07687913]
[1764707747631,0.21970537,91031.0,91030.0,0.17163913]
[1764707747871,0.21970537,91031.0,91030.0,0.07687913]
[1764707748261,0.24150136,91031.0,91030.0,0.01670913]
[1764707748606,0.21970537,91031.0,91030.0,0.01670913]
[1764707749573,0.01098502,91033.0,91030.0,0.01670913]
[1764707749732,0.21970327,91032.0,91030.0,0.01670913]
[1764707749935,0.21970537,91031.0,91030.0,0.01670913]
[1764707751703,0.36409537,91031.0,91030.0,0.01670913]
[1764707751910,0.38589136,91031.0,91030.0,0.01670913]
[1764707752312,0.36409537,91031.0,91030.0,0.00024678]
[1764707752530,0.44841435,91031.0,91030.0,0.00024678]
[1764707753515,0.44941435,91031.0,91030.0,0.00024678]
[1764707754005,0.42761836,91031.0,91030.0,0.00024678]
[1764707754213,0.44941435,91031.0,91030.0,0.00024678]
[1764707754819,0.49584435,91031.0,91030.0,0.00024678]
[1764707755155,0.81984435,91031.0,91030.0,0.00024678]
[1764707755358,0.81884435,91031.0,91030.0,0.00024678]
[1764707755968,0.82184435,91031.0,91030.0,0.00024678]
[1764707756594,0.93154941,91031.0,91030.0,1e-08]
[1764707756780,0.40731898,91028.0,91027.0,9e-05]
[1764707757037,0.47689997,91028.0,91027.0,9e-05]
[1764707757248,0.57441997,91028.0,91027.0,9e-05]
[1764707757449,0.5513255,91028.0,91027.0,9e-05]
[1764707757680,0.58155427,91028.0,91027.0,9e-05]
[1764707757865,0.79910379,91028.0,91027.0,9e-05]
[1764707758085,0.01098695,91017.0,90973.0,0.01636963]
[1764707758360,0.7146647,91006.0,90973.0,0.01636963]
[1764707758676,0.8120447,91006.0,90975.0,0.21983958]
[1764707758882,0.8120447,91006.0,90975.0,0.01099203]
[1764707759103,0.8120447,91006.0,90982.0,0.01099118]
[1764707759309,0.79024871,91006.0,90988.0,0.04445]
[1764707759518,0.80784871,91006.0,90988.0,0.04445]
[1764707759718,0.8296447,91006.0,90988.0,0.04445]
[1764707759937,0.8130447,91006.0,90989.0,0.21980631]
[1764707760176,0.8306447,91006.0,90989.0,0.23079664]
[1764707760407,0.12693898,91006.0,91000.0,30.23163105]
[1764707760623,0.3226847,91006.0,91000.0,30.01185085]
[1764707760831,0.4602147,91006.0,91000.0,30.01185085]
[1764707761034,0.43941871,91006.0,91000.0,30.01185085]
[1764707761242,0.76241871,91006.0,91000.0,30.01185085]
[1764707761455,0.8848834,91006.0,91000.0,30.01185085]
[1764707761641,0.7822147,91006.0,91005.0,0.01485554]
[1764707761854,0.7822147,91006.0,91000.0,29.51025538]
[1764707761855,0.60530079,91001.0,91000.0,29.51025538]
[1764707762063,0.68729284,91001.0,91000.0,28.98341558]
[1764707762272,0.66425678,91001.0,91000.0,28.98341558]
[1764707762481,0.68222678,91001.0,91000.0,28.98341558]
[1764707762689,0.70523289,91001.0,91000.0,28.98341558]
[1764707762928,0.72169524,91001.0,91000.0,28.45966239]
[1764707763548,0.71009524,91001.0,91000.0,28.45966239]
[1764707763984,1.58141924,91001.0,91000.0,27.87570454]
[1764707764158,1.64946557,91001.0,91000.0,26.3819648]
[1764707764393,1.64946557,91001.0,91000.0,25.80568622]
[1764707764394,1.60657034,91001.0,91000.0,25.80568622]
[1764707764573,1.67096957,91001.0,91000.0,25.77269672]
[1764707764873,1.66696957,91001.0,91000.0,25.46734238]
[1764707765102,1.67196957,91001.0,91000.0,25.16718423]
[1764707765317,1.24080112,91001.0,91000.0,25.13419473]
[1764707765519,1.23310589,91001.0,91000.0,24.8358118]
[1764707765651,1.24310589,91001.0,91000.0,24.55692439]
[1764707765855,1.26840112,91001.0,91000.0,24.20757122]
[1764707766055,1.26840112,91001.0,91000.0,23.9158133]
[1764707766255,1.24110589,91001.0,91000.0,23.8828238]
[1764707766454,1.24110589,91001.0,91000.0,23.8488343]
[1764707766455,1.23110589,91001.0,91000.0,23.8488343]
[1764707766681,1.23410589,91001.0,91000.0,23.47854181]
[1764707766885,1.23410589,91001.0,91000.0,23.15948856]
[1764707767087,1.23410589,91001.0,91000.0,22.88959343]
[1764707767088,1.23110589,91001.0,91000.0,22.88959343]
[1764707767324,1.23110589,91001.0,91000.0,22.61957276]
[1764707767476,1.23410589,91001.0,91000.0,22.35525174]
[1764707767680,1.21650589,91001.0,91000.0,22.35525174]
[1764707767885,1.21650589,91001.0,91000.0,22.35625174]
[1764707767886,1.01350789,91001.0,91000.0,22.35625174]
[1764707768095,0.6033849,91001.0,91000.0,22.35525174]
[1764707768274,0.29970379,91001.0,91000.0,22.35525174]
[1764707768476,0.62970379,91001.0,91000.0,22.35625174]
[1764707769457,0.68222678,91001.0,91000.0,22.35525174]
[1764707769665,2.68622678,91001.0,91000.0,22.35525174]
[1764707769821,2.68922678,91001.0,91000.0,21.84877166]
[1764707770026,2.71207467,91001.0,91000.0,21.53673365]
[1764707770202,2.71207467,91001.0,91000.0,21.27497]
[1764707770203,2.70907467,91001.0,91000.0,21.27497]
[1764707770405,2.70907467,91001.0,91000.0,21.05648736]
[1764707770606,2.70857391,91001.0,91000.0,20.45422294]
[1764707770813,2.76024928,91001.0,91000.0,19.47442983]
[1764707771009,2.76624928,91001.0,91000.0,19.22968399]
[1764707771210,2.76424928,91001.0,91000.0,18.99402072]
[1764707771409,2.78676611,91001.0,91000.0,18.62216286]
[1764707771635,2.76424928,91001.0,91000.0,18.35008371]
[1764707771844,2.75482055,91001.0,91000.0,16.82498866]
[1764707772045,2.75482055,91001.0,91000.0,16.79123759]
[1764707772361,2.75482055,91001.0,91000.0,16.72625859]
[1764707772362,2.74622055,91001.0,91000.0,16.72625859]
[1764707772566,2.74622055,91001.0,91000.0,16.51575319]
[1764707772567,2.69647467,91001.0,91000.0,16.51575319]
[1764707772766,2.71407467,91001.0,91000.0,16.48276369]
[1764707772929,2.71607467,91001.0,91000.0,16.08814948]
[1764707773132,2.69847467,91001.0,91000.0,16.05514848]
[1764707773343,2.69847467,91001.0,91000.0,15.83102644]
[1764707773344,2.71407467,91001.0,91000.0,15.83102644]
[1764707773582,2.7393699,91001.0,91000.0,15.58643569]
[1764707773784,2.71707467,91001.0,91000.0,15.24326594]
[1764707773987,2.71707467,91001.0,91000.0,15.0852803]
[1764707774189,2.69947467,91001.0,91000.0,14.93043772]
[1764707774412,2.71707467,91001.0,91000.0,14.58240707]
[1764707774657,2.7423699,91001.0,91000.0,13.22473747]
[1764707774904,2.7423699,91001.0,91000.0,13.04157313]
[1764707775155,2.69947467,91001.0,91000.0,12.83887005]
[1764707775411,2.72795583,91001.0,91000.0,12.69202908]
[1764707775627,2.65455168,91001.0,91000.0,12.51628173]
[1764707775822,2.63695168,91001.0,91000.0,12.02270543]
[1764707776023,2.63695168,91001.0,91000.0,11.83361684]
[1764707776024,2.71707467,91001.0,91000.0,11.83361684]
[1764707776271,2.71707467,91001.0,91000.0,11.42538872]
[1764707776440,2.7423699,91001.0,91000.0,9.81165085]
[1764707776650,2.7423699,91001.0,91000.0,9.35178671]
[1764707776859,2.7423699,91001.0,91000.0,9.21367587]
[1764707777067,2.7951299,91001.0,91000.0,8.96689241]
[1764707777186,2.83082079,91001.0,91000.0,8.82824005]
[1764707777399,2.78983179,91001.0,91000.0,8.5479986]
[1764707777607,2.70907467,91001.0,91000.0,8.29778461]
[1764707777830,2.70907467,91001.0,91000.0,7.93236952]
[1764707778047,2.74307179,91001.0,91000.0,7.60953988]
[1764707778260,2.70247467,91001.0,91000.0,7.39685328]
[1764707778462,2.72007467,91001.0,91000.0,7.11623343]
[1764707778682,2.72007467,91001.0,91000.0,5.93173294]
[1764707778876,2.74307179,91001.0,91000.0,5.76912349]
[1764707779124,2.74307179,91001.0,91000.0,5.73612445]
[1764707779385,2.74307179,91001.0,91000.0,5.22011997]
[1764707779619,2.70247467,91001.0,91000.0,5.05823599]
[1764707779813,2.70247467,91001.0,91000.0,4.90120454]
[1764707779814,2.39707467,91001.0,91000.0,4.90120454]
[1764707780108,2.72007467,91001.0,91000.0,4.78771911]
[1764707780323,2.72007467,91001.0,91000.0,4.47103912]
[1764707780531,2.39707467,91001.0,91000.0,4.16212832]
[1764707780748,2.72007467,91001.0,91000.0,4.00296303]
[1764707780956,2.72007467,91001.0,91000.0,3.81019527]
[1764707781164,2.72007467,91001.0,91000.0,3.77719016]
[1764707781332,2.72007467,91001.0,91000.0,3.14828767]
[1764707781544,2.72007467,91001.0,91000.0,2.78566351]
[1764707781812,2.72007467,91001.0,91000.0,2.7516584]
[1764707782021,2.70507467,91001.0,91000.0,2.71865329]
[1764707782222,2.71707467,91001.0,91000.0,2.08216952]
[1764707782425,2.71707467,91001.0,91000.0,0.78284512]
[1764707782426,2.73207179,91001.0,91000.0,0.78284512]
[1764707782633,2.73207179,91001.0,91000.0,0.70068581]
[1764707782930,2.71407467,91001.0,91000.0,0.61120959]
[1764707783068,2.71807467,91001.0,91000.0,0.57820239]
[1764707783302,2.71807467,91001.0,90904.0,9e-05]
[1764707783303,2.62714509,90981.0,90904.0,9e-05]
[1764707783527,2.76621129,90981.0,90904.0,9e-05]
[1764707783736,2.78474129,90981.0,90910.0,0.64241232]
[1764707783935,2.81778252,90981.0,90910.0,0.64241232]
[1764707784164,2.81778252,90981.0,90904.0,9e-05]
[1764707784165,2.77965421,90981.0,90904.0,9e-05]
[1764707784402,2.77851656,90981.0,90940.0,0.64241232]
[1764707784568,2.79611656,90981.0,90940.0,0.64241232]
[1764707784769,2.78351656,90981.0,90980.0,0.0012]
[1764707784975,2.80111656,90981.0,90980.0,0.0012]
[1764707785185,2.72399357,90981.0,90980.0,0.0012]
[1764707785410,2.57117657,90981.0,90980.0,0.0012]
[1764707785901,2.63369956,90981.0,90980.0,0.0012]
[1764707786678,2.63369956,90981.0,90930.0,0.64241232]
[1764707786679,0.02179599,90931.0,90930.0,0.64241232]
[1764707786903,0.02179599,90931.0,90886.0,0.05952279]
[1764707786904,0.02179599,90931.0,90868.0,0.01100497]
[1764707786905,0.02179599,90905.0,90868.0,0.01100497]
[1764707787116,0.06252299,90921.0,90895.0,0.64241232]
[1764707787117,0.02179599,90896.0,90895.0,0.64241232]
[1764707787317,0.02179599,90887.0,90886.0,0.64241232]
[1764707787656,0.03939599,90887.0,90886.0,0.10970506]
[1764707787843,0.04014599,90887.0,90886.0,0.10970506]
[1764707787965,0.11404599,90887.0,90886.0,0.10970506]
[1764707788194,0.11404599,90887.0,90881.0,0.01024259]
[1764707788195,0.02179599,90882.0,90881.0,0.01024259]
[1764707788434,0.04013599,90882.0,90881.0,0.01024259]
[1764707788636,0.11404599,90882.0,90881.0,0.01024259]
[1764707788832,0.04013599,90882.0,90881.0,0.01024259]
[1764707789036,0.04013599,90882.0,90881.0,0.07550808]
[1764707789286,0.04013599,90882.0,90881.0,0.01375334]
[1764707789525,0.11404599,90882.0,90881.0,0.01375334]
[1764707789936,0.49956898,90882.0,90881.0,0.01375334]
[1764707790135,0.43704599,90882.0,90881.0,0.01375334]
[1764707790972,0.43804599,90882.0,90881.0,0.01375334]